[Event "7th Iberoamerican-ch 2019"]
[Site "Linares"]
[Date "2019.08.14"]
[Round "5.35"]
[White "Jesus Reyes, Javier"]
[Black "Esquivias Quintero, Luis Manuel"]
[Result "0-1"]
[ECO "A57"]
[WhiteElo "2021"]
[BlackElo "2282"]
[Annotator "NA"]
[PlyCount "104"]
[EventDate "2019.08.10"]
[EventType "swiss"]
[EventCountry "ESP"]
[SourceTitle "playchess.com"]
[Source "ChessBase"]
[SourceQuality "1"]
[TimeControl "5400+30"]

1. d4 {[%emt 0:00:00]} Nf6 {[%emt 0:00:00]} 2. c4 {[%emt 0:00:00]} c5 {[%emt 0:00:00]} 3. d5 {[%emt 0:00:17]} b5 {[%emt 0:00:00]} 4. Qc2 {[%emt 0:00:33]} e6 {[%emt 0:00:00]} 5. e4 {[%emt 0:01:18]} bxc4 {[%emt 0:00:10]} 6. Nc3 {[%emt 0:04:03]} Bb7 {[%emt 0:05:55]} 7. Bxc4 {[%emt 0:10:50]} exd5 {[%emt 0:00:22]} 8. exd5 {[%emt 0:00:32]} d6 {[%emt 0:00:32]} 9. Bf4 {[%emt 0:01:51]} Be7 {[%emt 0:06:01]} 10. Nge2 {[%emt 0:02:35]} Nbd7 {[%emt 0:00:44]} 11. g4 {[%emt 0:12:35]} Nxg4 {[%emt 0:08:18]} 12. Qf5 {[%emt 0:00:29]} Nge5 {[%emt 0:03:34]} 13. Bb5 {[%emt 0:05:46]} O-O {[%emt 0:05:48]} 14. O-O-O {[%emt 0:00:16]} Bc8 {[%emt 0:05:47]} 15. Rhg1 {[%emt 0:07:08]} Ng6 {[%emt 0:06:25]} 16. Be3 {[%emt 0:04:52]} a6 {[%emt 0:05:05]} 17. Bc6 {[%emt 0:04:08]} Nde5 {[%emt 0:02:44]} 18. Qe4 {[%emt 0:01:57]} Rb8 {[%emt 0:00:29]} 19. Ba4 {[%emt 0:08:14]} Rb4 {[%emt 0:02:51]} 20. Qc2 {[%emt 0:01:09]} Nc4 {[%emt 0:01:06]} 21. b3 {[%emt 0:03:00]} Nxe3 {[%emt 0:00:45]} 22. fxe3 {[%emt 0:00:03]} Bf6 {[%emt 0:01:05]} 23. Rdf1 {[%emt 0:03:28]} Qe7 {[%emt 0:01:13]} 24. Qd2 {[%emt 0:03:02]} Qe5 {[%emt 0:03:05]} 25. e4 {[%emt 0:02:15]} c4 {[%emt 0:02:26]} 26. a3 {[%emt 0:01:17]} Rxb3 {[%emt 0:03:28]} 27. Bxb3 {[%emt 0:00:14]} cxb3 {[%emt 0:00:02]} 28. Kb2 {[%emt 0:01:43]} Bd7 {[%emt 0:00:24]} 29. Kxb3 {[%emt 0:02:17]} Rb8+ {[%emt 0:02:11]} 30. Ka2 {[%emt 0:01:27]} Bb5 {[%emt 0:00:50]} 31. Nxb5 {[%emt 0:01:56]} Rxb5 {[%emt 0:00:34]} 32. Rb1 {[%emt 0:00:40]} Qxe4 {[%emt 0:01:35]} 33. Rxb5 {[%emt 0:00:36]} axb5 {[%emt 0:00:04]} 34. Rc1 {[%emt 0:02:29]} h6 {[%emt 0:01:39]} 35. Rc8+ {[%emt 0:00:57]} Kh7 {[%emt 0:00:13]} 36. Nc3 {[%emt 0:00:30]} Qg4 {[%emt 0:02:50]} 37. Rc7 {[%emt 0:00:44]} b4 {[%emt 0:00:29]} 38. Nb5 {[%emt 0:02:51]} bxa3 {[%emt 0:09:11]} 39. Kxa3 {[%emt 0:01:44]} Qf3+ {[%emt 0:06:52]} 40. Ka4 {[%emt 0:00:43]} Be5 {[%emt 0:01:20]} 41. Ka5 {[%emt 0:03:48]} Qf6 {[%emt 0:04:54]} 42. Qc2 {[%emt 0:01:28]} h5 {[%emt 0:00:52]} 43. h3 {[%emt 0:01:49]} Qf3 {[%emt 0:01:10]} 44. Qc6 {[%emt 0:00:24]} h4 {[%emt 0:01:29]} 45. Kb6 {[%emt 0:00:42]} Qxh3 {[%emt 0:01:29]} 46. Rxf7 {[%emt 0:00:15]} Qg3 {[%emt 0:00:13]} 47. Rf5 {[%emt 0:00:52]} Qg4 {[%emt 0:00:49]} 48. Rf1 {[%emt 0:02:56]} h3 {[%emt 0:00:22]} 49. Nxd6 {[%emt 0:00:13]} h2 {[%emt 0:00:14]} 50. Nf7 {[%emt 0:00:33]} Qg1+ {[%emt 0:01:04]} 51. Qc5 {[%emt 0:01:17]} Bd4 {[%emt 0:00:30]} 52. Ng5+ {[%emt 0:00:14]} Kg8 {[%emt 0:00:41]} 0-1

[Event "7th Iberoamerican-ch 2019"]
[Site "Linares"]
[Date "2019.08.14"]
[Round "5.36"]
[White "Riquelme Valero, Manuel Damian"]
[Black "Ingunza Curro, Andres"]
[Result "1/2-1/2"]
[ECO "A46"]
[WhiteElo "2157"]
[BlackElo "2103"]
[Annotator "NA"]
[PlyCount "26"]
[EventDate "2019.08.10"]
[EventType "swiss"]
[EventCountry "ESP"]
[SourceTitle "playchess.com"]
[Source "ChessBase"]
[SourceQuality "1"]
[TimeControl "5400+30"]

1. d4 {[%emt 0:00:00]} Nf6 {[%emt 0:00:00]} 2. Nf3 {[%emt 0:00:00]} e6 {[%emt 0:00:00]} 3. e3 {[%emt 0:00:00]} b6 {[%emt 0:00:29]} 4. Bd3 {[%emt 0:00:20]} Bb7 {[%emt 0:00:35]} 5. Nbd2 {[%emt 0:00:21]} d5 {[%emt 0:00:57]} 6. O-O {[%emt 0:00:44]} Bd6 {[%emt 0:03:14]} 7. b3 {[%emt 0:00:10]} O-O {[%emt 0:00:52]} 8. Bb2 {[%emt 0:00:10]} c5 {[%emt 0:01:12]} 9. c4 {[%emt 0:03:36]} Nbd7 {[%emt 0:01:48]} 10. Ne5 {[%emt 0:02:17]} Rc8 {[%emt 0:24:33]} 11. cxd5 {[%emt 0:12:06]} exd5 {[%emt 0:20:31]} 12. Bf5 {[%emt 0:10:55]} g6 {[%emt 0:12:11]} 13. Bd3 {[%emt 0:12:01]} Qe7 {[%emt 0:03:32]} 1/2-1/2

[Event "7th Iberoamerican-ch 2019"]
[Site "Linares"]
[Date "2019.08.14"]
[Round "5.37"]
[White "Gil Quilez, Sonia"]
[Black "Torres Sanchez, Jose"]
[Result "1-0"]
[ECO "A40"]
[WhiteElo "2102"]
[BlackElo "2304"]
[Annotator "NA"]
[PlyCount "40"]
[EventDate "2019.08.10"]
[EventType "swiss"]
[EventCountry "ESP"]
[SourceTitle "playchess.com"]
[Source "ChessBase"]
[SourceQuality "1"]
[TimeControl "5400+30"]

1. d4 {[%emt 0:00:00]} g6 {[%emt 0:00:00]} 2. c4 {[%emt 0:00:00]} Bg7 {[%emt 0:00:00]} 3. Nf3 {[%emt 0:00:00]} Nf6 4. Nc3 {[%emt 0:00:21]} O-O {[%emt 0:00:04]} 5. e4 {[%emt 0:00:31]} c5 {[%emt 0:00:42]} 6. d5 {[%emt 0:00:54]} e6 {[%emt 0:00:25]} 7. Bd3 {[%emt 0:02:02]} d6 {[%emt 0:00:19]} 8. h3 {[%emt 0:01:18]} exd5 {[%emt 0:00:26]} 9. cxd5 {[%emt 0:00:24]} a6 {[%emt 0:00:27]} 10. a4 {[%emt 0:00:28]} Nbd7 {[%emt 0:00:17]} 11. O-O {[%emt 0:01:57]} Qe7 {[%emt 0:01:46]} 12. Re1 {[%emt 0:06:15]} Nh5 {[%emt 0:03:22]} 13. Bg5 {[%emt 0:06:01]} Bf6 {[%emt 0:00:13]} 14. Be3 {[%emt 0:01:31]} Ne5 {[%emt 0:00:50]} 15. Be2 {[%emt 0:02:12]} Kh8 {[%emt 0:05:14]} 16. Nxe5 {[%emt 0:04:35]} Bxe5 {[%emt 0:00:24]} 17. Bxh5 {[%emt 0:03:10]} gxh5 {[%emt 0:00:07]} 18. Qxh5 {[%emt 0:01:31]} Rg8 {[%emt 0:00:10]} 19. f4 {[%emt 0:03:46]} Bxc3 {[%emt 0:02:05]} 20. bxc3 {[%emt 0:00:12]} Qxe4 {[%emt 0:00:21]} 1-0

[Event "7th Iberoamerican-ch 2019"]
[Site "Linares"]
[Date "2019.08.14"]
[Round "5.38"]
[White "Collado Barbas, Laura"]
[Black "Diaz Mino, Pablo"]
[Result "1-0"]
[ECO "E32"]
[WhiteElo "2070"]
[BlackElo "2239"]
[Annotator "NA"]
[PlyCount "100"]
[EventDate "2019.08.10"]
[EventType "swiss"]
[EventCountry "ESP"]
[SourceTitle "playchess.com"]
[Source "ChessBase"]
[SourceQuality "1"]
[TimeControl "5400+30"]

1. d4 {[%emt 0:00:00]} Nf6 {[%emt 0:00:00]} 2. c4 {[%emt 0:00:00]} e6 {[%emt 0:00:00]} 3. Nc3 {[%emt 0:00:00]} Bb4 {[%emt 0:00:00]} 4. Qc2 {[%emt 0:00:01]} b6 {[%emt 0:00:00]} 5. e4 {[%emt 0:00:18]} c5 {[%emt 0:00:04]} 6. a3 {[%emt 0:00:53]} Bxc3+ {[%emt 0:00:14]} 7. bxc3 {[%emt 0:00:06]} Bb7 {[%emt 0:00:14]} 8. Bd3 {[%emt 0:00:12]} b5 {[%emt 0:00:04]} 9. Qb1 {[%emt 0:00:19]} cxd4 {[%emt 0:00:36]} 10. cxd4 {[%emt 0:00:37]} Nc6 {[%emt 0:03:02]} 11. cxb5 {[%emt 0:12:30]} Nxd4 {[%emt 0:01:06]} 12. Qb4 {[%emt 0:04:43]} e5 {[%emt 0:02:55]} 13. Nf3 {[%emt 0:19:08]} Nxf3+ {[%emt 0:08:46]} 14. gxf3 {[%emt 0:00:03]} Qe7 {[%emt 0:06:45]} 15. Be3 {[%emt 0:08:35]} d5 {[%emt 0:04:29]} 16. Bc5 {[%emt 0:02:33]} Qe6 {[%emt 0:05:05]} 17. Rd1 {[%emt 0:12:05]} Nd7 {[%emt 0:27:31]} 18. Bd6 {[%emt 0:05:54]} f5 {[%emt 0:14:10]} 19. exf5 {[%emt 0:02:35]} Qh6 {[%emt 0:02:33]} 20. Rg1 {[%emt 0:03:23]} Kf7 {[%emt 0:01:06]} 21. h4 {[%emt 0:08:28]} Rhe8 {[%emt 0:01:30]} 22. Qg4 {[%emt 0:07:06]} Nf6 {[%emt 0:09:03]} 23. Qg5 {[%emt 0:01:22]} Rac8 {[%emt 0:04:24]} 24. Qxh6 {[%emt 0:02:55]} gxh6 {[%emt 0:00:02]} 25. Bb1 {[%emt 0:00:28]} Rc4 {[%emt 0:03:38]} 26. Ke2 {[%emt 0:00:58]} Rxh4 {[%emt 0:01:59]} 27. Ba2 Rd8 28. Bc7 {[%emt 0:03:22]} Rd7 {[%emt 0:01:00]} 29. Rc1 {[%emt 0:01:38]} Ne8 {[%emt 0:01:35]} 30. Bb8 {[%emt 0:00:47]} Ra4 {[%emt 0:00:51]} 31. Rc3 Kf6 32. Bxe5+ {[%emt 0:03:30]} Kxe5 {[%emt 0:01:01]} 33. Re3+ {[%emt 0:00:01]} Kf6 {[%emt 0:00:50]} 34. Rxe8 {[%emt 0:00:21]} Rxa3 {[%emt 0:00:25]} 35. Bb1 {[%emt 0:00:22]} d4 {[%emt 0:01:07]} 36. Re6+ {[%emt 0:00:50]} Kf7 {[%emt 0:00:05]} 37. Rxh6 Bxf3+ {[%emt 0:00:58]} 38. Kd2 {[%emt 0:00:45]} Kf8 {[%emt 0:00:06]} 39. f6 {[%emt 0:01:51]} Bd5 {[%emt 0:00:36]} 40. Bxh7 {[%emt 0:00:47]} Rf3 {[%emt 0:01:01]} 41. Bd3 {[%emt 0:00:25]} Rxf2+ {[%emt 0:00:32]} 42. Ke1 {[%emt 0:00:04]} Rf3 {[%emt 0:00:22]} 43. Kd2 {[%emt 0:00:53]} Rb7 {[%emt 0:00:54]} 44. Be2 {[%emt 0:00:34]} Rf5 {[%emt 0:00:32]} 45. Bh5 {[%emt 0:00:22]} Rxh5 {[%emt 0:00:48]} 46. Rxh5 {[%emt 0:00:08]} Bf3 {[%emt 0:00:22]} 47. Rh6 {[%emt 0:00:32]} Be4 {[%emt 0:00:35]} 48. Rg4 {[%emt 0:00:44]} Bf3 {[%emt 0:00:24]} 49. Rxd4 {[%emt 0:00:25]} Kf7 {[%emt 0:00:37]} 50. Ke3 {[%emt 0:00:37]} Bg2 {[%emt 0:00:12] Ke4} 1-0

[Event "7th Iberoamerican-ch 2019"]
[Site "Linares"]
[Date "2019.08.14"]
[Round "5.39"]
[White "Fernandez Ayuso, Sergio"]
[Black "Garcia Morales, Ivette Ale"]
[Result "1/2-1/2"]
[ECO "A46"]
[WhiteElo "2153"]
[BlackElo "1988"]
[Annotator "NA"]
[PlyCount "227"]
[EventDate "2019.08.10"]
[EventType "swiss"]
[EventCountry "ESP"]
[SourceTitle "playchess.com"]
[Source "ChessBase"]
[SourceQuality "1"]
[TimeControl "5400+30"]

1. d4 {[%emt 0:00:41]} e6 {[%emt 0:00:00]} 2. Nf3 {[%emt 0:00:04]} Nf6 {[%emt 0:00:01]} 3. Bg5 {[%emt 0:00:26]} b6 {[%emt 0:00:54]} 4. Nbd2 {[%emt 0:00:35]} Bb7 {[%emt 0:00:12]} 5. e3 {[%emt 0:02:26]} Be7 {[%emt 0:00:27]} 6. Be2 {[%emt 0:00:18]} d6 {[%emt 0:00:54]} 7. O-O {[%emt 0:00:13]} Nbd7 {[%emt 0:00:23]} 8. c3 {[%emt 0:00:33]} h6 {[%emt 0:00:56]} 9. Bh4 {[%emt 0:01:17]} O-O {[%emt 0:04:28]} 10. Qc2 {[%emt 0:05:38]} Re8 {[%emt 0:08:46]} 11. Rfd1 {[%emt 0:01:03]} Nh5 {[%emt 0:03:36]} 12. Bxe7 {[%emt 0:00:56]} Qxe7 {[%emt 0:00:21]} 13. Ne1 {[%emt 0:00:17]} Nhf6 {[%emt 0:02:23]} 14. Bf3 {[%emt 0:00:07]} Bxf3 {[%emt 0:00:17]} 15. Nexf3 {[%emt 0:00:10]} e5 {[%emt 0:00:59]} 16. dxe5 {[%emt 0:00:06]} Nxe5 {[%emt 0:04:28]} 17. h3 {[%emt 0:03:50]} Nxf3+ {[%emt 0:09:59]} 18. Nxf3 {[%emt 0:00:07]} Qe4 {[%emt 0:05:09]} 19. Qb3 {[%emt 0:01:07]} Qe6 {[%emt 0:02:13]} 20. Nd4 {[%emt 0:09:31]} Qe4 {[%emt 0:00:30]} 21. Nf3 {[%emt 0:04:11]} Qb7 {[%emt 0:06:10]} 22. a4 {[%emt 0:03:52]} a5 {[%emt 0:00:19]} 23. Rac1 {[%emt 0:09:52]} Re4 {[%emt 0:00:49]} 24. Rd4 {[%emt 0:00:30]} Rae8 {[%emt 0:00:46]} 25. Rcd1 {[%emt 0:01:18]} Qc6 {[%emt 0:03:33]} 26. Kf1 {[%emt 0:05:02]} Kf8 {[%emt 0:03:32]} 27. Qc2 {[%emt 0:06:45]} R8e6 {[%emt 0:08:59]} 28. Rc1 {[%emt 0:04:13]} Nd7 {[%emt 0:05:51]} 29. b3 {[%emt 0:02:46]} Re8 {[%emt 0:06:02]} 30. Nd2 {[%emt 0:10:50]} R4e6 {[%emt 0:00:29]} 31. Qf5 {[%emt 0:05:13]} Rf6 {[%emt 0:02:48]} 32. Qd3 {[%emt 0:01:20]} Nc5 {[%emt 0:02:07]} 33. Qe2 {[%emt 0:01:26]} Rfe6 {[%emt 0:01:04]} 34. Qc4 {[%emt 0:01:31]} Qb7 {[%emt 0:02:28]} 35. Rf4 {[%emt 0:01:38]} d5 {[%emt 0:01:44]} 36. Qe2 {[%emt 0:01:17]} Re5 {[%emt 0:04:38]} 37. Rb1 {[%emt 0:01:31]} Ne6 {[%emt 0:00:22]} 38. Rh4 {[%emt 0:03:07]} Ng5 {[%emt 0:01:36]} 39. Nf3 {[%emt 0:01:29]} Nxf3 {[%emt 0:00:26]} 40. Qxf3 {[%emt 0:00:04]} Qa6+ {[%emt 0:00:10]} 41. Qe2 {[%emt 0:00:12]} Qxe2+ {[%emt 0:00:21]} 42. Kxe2 {[%emt 0:00:03]} Re4 {[%emt 0:00:20]} 43. Rxe4 {[%emt 0:01:59]} dxe4 {[%emt 0:00:33]} 44. Rd1 {[%emt 0:00:04]} Ke7 {[%emt 0:00:28]} 45. Rd4 {[%emt 0:00:02]} Kf6 {[%emt 0:01:35]} 46. Kd2 {[%emt 0:00:36]} c5 {[%emt 0:01:28]} 47. Rd7 {[%emt 0:00:40]} Ke6 {[%emt 0:00:35]} 48. Rb7 {[%emt 0:00:18]} Rd8+ {[%emt 0:00:05]} 49. Kc2 {[%emt 0:00:03]} Rd6 {[%emt 0:00:18]} 50. f3 {[%emt 0:00:29]} exf3 {[%emt 0:00:39]} 51. gxf3 {[%emt 0:00:05]} g5 {[%emt 0:02:06]} 52. Rb8 {[%emt 0:00:15]} f5 {[%emt 0:00:57]} 53. Rf8 {[%emt 0:00:50]} Ke5 {[%emt 0:00:30]} 54. Rf7 {[%emt 0:00:18]} Ke6 {[%emt 0:00:25]} 55. Rh7 {[%emt 0:02:11]} Ke5 {[%emt 0:00:09]} 56. Rh8 {[%emt 0:00:22]} Kd5 {[%emt 0:02:54]} 57. Kd3 {[%emt 0:00:34]} c4+ {[%emt 0:00:30]} 58. Kc2 {[%emt 0:00:30]} cxb3+ {[%emt 0:01:54]} 59. Kxb3 {[%emt 0:00:00]} Rc6 {[%emt 0:00:03]} 60. c4+ {[%emt 0:04:27]} Ke5 {[%emt 0:00:36]} 61. Kc3 {[%emt 0:00:07]} Rd6 {[%emt 0:00:26]} 62. Rh7 {[%emt 0:01:06]} Rc6 {[%emt 0:01:11]} 63. Rh8 {[%emt 0:03:37]} Rd6 {[%emt 0:00:07]} 64. Kc2 {[%emt 0:00:04]} Rc6 {[%emt 0:00:08]} 65. Kd3 {[%emt 0:00:04]} Rd6+ {[%emt 0:00:05]} 66. Kc3 {[%emt 0:00:03]} Rc6 {[%emt 0:01:24]} 67. Rd8 {[%emt 0:01:32]} Rd6 {[%emt 0:00:51]} 68. Rh8 {[%emt 0:05:24]} Rc6 {[%emt 0:00:09]} 69. Rh7 {[%emt 0:00:38]} Rd6 {[%emt 0:00:22]} 70. Rc7 {[%emt 0:00:28]} Rd1 {[%emt 0:01:30]} 71. Rc6 {[%emt 0:00:08]} Rd6 {[%emt 0:00:07]} 72. f4+ {[%emt 0:00:52]} Ke6 {[%emt 0:01:25]} 73. Rc7 {[%emt 0:00:03]} Kf6 {[%emt 0:00:09]} 74. c5 {[%emt 0:00:10]} bxc5 {[%emt 0:00:30]} 75. Rxc5 {[%emt 0:00:30]} Re6 {[%emt 0:00:03]} 76. fxg5+ {[%emt 0:00:39]} hxg5 {[%emt 0:00:06]} 77. Kd3 {[%emt 0:00:10]} Re5 {[%emt 0:00:18]} 78. Rc6+ {[%emt 0:00:30]} Re6 {[%emt 0:00:11]} 79. Rc4 {[%emt 0:00:16]} Rd6+ {[%emt 0:00:18]} 80. Ke2 {[%emt 0:00:07]} Ke5 {[%emt 0:00:22]} 81. Kf3 {[%emt 0:00:16]} Rd5 {[%emt 0:00:24]} 82. Rc6 {[%emt 0:00:48]} Rd1 {[%emt 0:00:43]} 83. Ra6 {[%emt 0:00:48]} Rd5 {[%emt 0:00:00]} 84. Rg6 {[%emt 0:00:47]} Rd3 {[%emt 0:00:26]} 85. Ra6 {[%emt 0:01:06]} Rd5 {[%emt 0:00:06]} 86. Ke2 {[%emt 0:00:14]} Ke4 {[%emt 0:01:34]} 87. Re6+ {[%emt 0:00:51]} Re5 {[%emt 0:00:07]} 88. Ra6 {[%emt 0:00:31]} f4 {[%emt 0:00:30]} 89. exf4 {[%emt 0:00:09]} gxf4 {[%emt 0:00:16]} 90. Kf2 {[%emt 0:00:34]} Rc5 {[%emt 0:00:20]} 91. Re6+ {[%emt 0:00:30]} Kf5 {[%emt 0:00:30]} 92. Rb6 {[%emt 0:00:14]} Rc2+ {[%emt 0:00:28]} 93. Kf3 {[%emt 0:01:07]} Rc3+ {[%emt 0:00:02]} 94. Kg2 {[%emt 0:00:11]} Rg3+ {[%emt 0:00:53]} 95. Kh2 {[%emt 0:00:23]} Re3 {[%emt 0:02:38]} 96. Rb5+ {[%emt 0:00:11]} Ke4 {[%emt 0:00:30]} 97. Rxa5 {[%emt 0:00:35]} Re2+ {[%emt 0:00:18]} 98. Kg1 {[%emt 0:00:09]} Kf3 {[%emt 0:00:12]} 99. h4 {[%emt 0:01:45]} Rg2+ {[%emt 0:00:10]} 100. Kh1 {[%emt 0:00:16]} Rg4 {[%emt 0:00:13]} 101. Rb5 {[%emt 0:00:36]} Rxh4+ {[%emt 0:00:11]} 102. Kg1 {[%emt 0:00:03]} Rg4+ {[%emt 0:00:39]} 103. Kf1 {[%emt 0:00:04]} Kg3 {[%emt 0:00:51]} 104. a5 {[%emt 0:00:56]} f3 {[%emt 0:01:01]} 105. Rb6 {[%emt 0:00:17]} Ra4 {[%emt 0:00:25]} 106. Rg6+ {[%emt 0:00:04]} Kf4 {[%emt 0:00:17]} 107. a6 {[%emt 0:00:07]} Ke3 {[%emt 0:00:22]} 108. Re6+ {[%emt 0:00:06]} Kf4 {[%emt 0:00:11]} 109. Kf2 {[%emt 0:00:13]} Ra2+ {[%emt 0:00:08]} 110. Kf1 {[%emt 0:00:03]} Kg3 {[%emt 0:00:15]} 111. Rg6+ {[%emt 0:00:04]} Kf4 {[%emt 0:00:04]} 112. Rf6+ {[%emt 0:00:09]} Ke3 {[%emt 0:00:14]} 113. Re6+ {[%emt 0:00:03]} Kf4 {[%emt 0:00:06]} 114. Rf6+ 1/2-1/2

[Event "7th Iberoamerican-ch 2019"]
[Site "Linares"]
[Date "2019.08.15"]
[Round "6.7"]
[White "Salgado Lopez, Ivan"]
[Black "Moreno Ruiz, Javier"]
[Result "1/2-1/2"]
[ECO "D38"]
[WhiteElo "2596"]
[BlackElo "2473"]
[Annotator "ChessBase"]
[PlyCount "47"]
[EventDate "2019.08.10"]
[EventType "swiss"]
[EventCountry "ESP"]
[SourceTitle "playchess.com"]
[Source "ChessBase"]
[SourceQuality "1"]
[TimeControl "5400+30"]

1. d4 {[%emt 0:00:00]} Nf6 {[%emt 0:00:48]} 2. c4 {[%emt 0:00:00]} e6 {[%emt 0:00:34]} 3. Nf3 {[%emt 0:00:00]} d5 {[%emt 0:00:09]} 4. Nc3 {[%emt 0:00:00]} Bb4 {[%emt 0:00:05]} 5. Qa4+ {[%emt 0:00:02]} Nc6 {[%emt 0:00:07]} 6. e3 {[%emt 0:00:05]} O-O {[%emt 0:00:37]} 7. Qc2 {[%emt 0:00:05]} Re8 {[%emt 0:00:38]} 8. Bd2 {[%emt 0:01:13]} e5 {[%emt 0:02:39]} 9. dxe5 {[%emt 0:10:41]} Nxe5 {[%emt 0:00:06]} 10. cxd5 {[%emt 0:05:46]} Nxf3+ {[%emt 0:03:23]} 11. gxf3 {[%emt 0:00:13]} Bxc3 {[%emt 0:01:12]} 12. Bxc3 {[%emt 0:01:26]} Qxd5 {[%emt 0:00:09]} 13. Be2 {[%emt 0:19:04]} Bf5 {[%emt 0:05:02]} 14. Qa4 {[%emt 0:00:24]} Bg6 {[%emt 0:02:50]} 15. Rd1 {[%emt 0:03:59]} Qg5 {[%emt 0:07:58]} 16. Kf1 {[%emt 0:02:32]} Qf5 {[%emt 0:05:12]} 17. h4 {[%emt 0:10:42]} Bh5 {[%emt 0:03:25]} 18. Qf4 {[%emt 0:08:26]} Qxf4 {[%emt 0:01:43]} 19. exf4 {[%emt 0:00:06]} h6 {[%emt 0:14:57]} 20. Rg1 {[%emt 0:05:06]} Kf8 {[%emt 0:06:25]} 21. Bb4+ {[%emt 0:00:06]} Kg8 {[%emt 0:00:07]} 22. Bc3 {[%emt 0:00:04]} Kf8 {[%emt 0:00:05]} 23. Bb4+ {[%emt 0:10:06]} Kg8 {[%emt 0:00:07]} 24. Bc3 {[%emt 0:00:04]} 1/2-1/2

[Event "7th Iberoamerican-ch 2019"]
[Site "Linares"]
[Date "2019.08.15"]
[Round "6.11"]
[White "Plazuelo Pascual, Juan"]
[Black "Salinas Herrera, Pablo"]
[Result "1/2-1/2"]
[ECO "D11"]
[WhiteElo "2411"]
[BlackElo "2506"]
[Annotator "ChessBase"]
[PlyCount "25"]
[EventDate "2019.08.10"]
[EventType "swiss"]
[EventCountry "ESP"]
[SourceTitle "playchess.com"]
[Source "ChessBase"]
[SourceQuality "1"]
[TimeControl "5400+30"]

1. d4 {[%emt 0:00:00]} d5 {[%emt 0:02:15]} 2. c4 {[%emt 0:00:00]} c6 {[%emt 0:00:05]} 3. Nf3 {[%emt 0:00:00]} Nf6 {[%emt 0:00:09]} 4. e3 {[%emt 0:00:04]} g6 {[%emt 0:01:58]} 5. Nc3 {[%emt 0:00:42]} Bg7 {[%emt 0:00:09]} 6. Be2 {[%emt 0:00:20]} O-O {[%emt 0:00:06]} 7. O-O {[%emt 0:00:03]} b6 {[%emt 0:00:04]} 8. a4 {[%emt 0:01:35]} Bb7 {[%emt 0:00:47]} 9. Qb3 {[%emt 0:12:49]} Nbd7 {[%emt 0:14:24]} 10. cxd5 {[%emt 0:04:31]} Nxd5 {[%emt 0:03:56]} 11. a5 {[%emt 0:04:36]} e6 {[%emt 0:11:21]} 12. a6 {[%emt 0:08:59]} Bc8 {[%emt 0:00:05]} 13. e4 {[%emt 0:12:31]} 1/2-1/2

[Event "7th Iberoamerican-ch 2019"]
[Site "Linares"]
[Date "2019.08.15"]
[Round "6.32"]
[White "Garcia Martin, Marta"]
[Black "Arroyo Rodriguez, Jesus"]
[Result "1/2-1/2"]
[ECO "B38"]
[WhiteElo "2313"]
[BlackElo "2126"]
[Annotator "ChessBase"]
[PlyCount "145"]
[EventDate "2019.08.10"]
[EventType "swiss"]
[EventCountry "ESP"]
[SourceTitle "playchess.com"]
[Source "ChessBase"]
[SourceQuality "1"]
[TimeControl "5400+30"]

1. e4 c5 {[%emt 0:02:25]} 2. Nf3 {[%emt 0:00:00]} g6 {[%emt 0:00:09]} 3. d4 {[%emt 0:00:28]} cxd4 {[%emt 0:00:06]} 4. Nxd4 {[%emt 0:00:05]} Bg7 {[%emt 0:00:05]} 5. c4 {[%emt 0:00:23]} Nc6 {[%emt 0:00:18]} 6. Be3 {[%emt 0:00:07]} Nf6 {[%emt 0:00:23]} 7. Nc3 {[%emt 0:00:08]} d6 {[%emt 0:00:19]} 8. Be2 {[%emt 0:00:57]} O-O {[%emt 0:00:28]} 9. O-O {[%emt 0:00:20]} Bd7 {[%emt 0:00:24]} 10. h3 Nxd4 {[%emt 0:00:45]} 11. Bxd4 {[%emt 0:03:42]} Bc6 {[%emt 0:00:41]} 12. Qc2 {[%emt 0:00:46]} a5 {[%emt 0:02:04]} 13. Rad1 {[%emt 0:00:57]} Nd7 {[%emt 0:00:37]} 14. Bxg7 {[%emt 0:00:30]} Kxg7 {[%emt 0:00:08]} 15. Bg4 {[%emt 0:00:40]} a4 {[%emt 0:08:31]} 16. Bxd7 {[%emt 0:19:36]} Bxd7 {[%emt 0:00:40]} 17. Rfe1 {[%emt 0:11:22]} Qa5 {[%emt 0:10:36]} 18. Rd5 {[%emt 0:09:34]} Qb4 {[%emt 0:01:18]} 19. Rd4 {[%emt 0:13:12]} Rfc8 {[%emt 0:04:07]} 20. a3 {[%emt 0:00:58]} Qc5 {[%emt 0:09:32]} 21. Qd2 {[%emt 0:05:05]} Bc6 {[%emt 0:04:05]} 22. h4 {[%emt 0:10:31]} h5 {[%emt 0:06:27]} 23. Re3 {[%emt 0:00:48]} Rd8 {[%emt 0:02:56]} 24. e5 {[%emt 0:02:38]} Re8 {[%emt 0:06:49]} 25. e6 {[%emt 0:04:52]} Rf8 {[%emt 0:03:17]} 26. Qd3 {[%emt 0:10:22]} f5 {[%emt 0:03:15]} 27. Nd5 {[%emt 0:01:07]} Bxd5 {[%emt 0:03:03]} 28. Rxd5 {[%emt 0:00:03]} Qb6 {[%emt 0:02:06]} 29. Rb5 {[%emt 0:01:25]} Qc7 {[%emt 0:04:33]} 30. Rg3 {[%emt 0:01:35]} Kh7 {[%emt 0:06:52]} 31. Qd5 {[%emt 0:00:44]} b6 {[%emt 0:01:05]} 32. Qd4 {[%emt 0:00:52]} Ra6 {[%emt 0:02:04]} 33. Qf4 {[%emt 0:01:18]} Rf6 {[%emt 0:00:30]} 34. Kh2 {[%emt 0:01:19]} Ra8 {[%emt 0:05:01]} 35. Qd4 {[%emt 0:00:31]} Ra6 {[%emt 0:00:17]} 36. Qd5 {[%emt 0:00:22]} Qc8 {[%emt 0:03:03]} 37. Re3 {[%emt 0:00:16]} f4 {[%emt 0:00:58]} 38. Re4 {[%emt 0:00:25]} Rf5 {[%emt 0:02:27]} 39. Qd4 {[%emt 0:00:09]} Qf8 {[%emt 0:02:07]} 40. Kg1 {[%emt 0:01:15]} f3 {[%emt 0:01:50]} 41. g3 {[%emt 0:00:34]} Ra5 {[%emt 0:00:12]} 42. Rxb6 {[%emt 0:00:24]} Rae5 {[%emt 0:00:22]} 43. Rb5 {[%emt 0:00:36]} Rxb5 {[%emt 0:00:56]} 44. cxb5 {[%emt 0:00:03]} Rxb5 {[%emt 0:00:13]} 45. Rf4 {[%emt 0:00:07]} Rf5 {[%emt 0:00:17]} 46. Qxa4 {[%emt 0:00:56]} Qf6 {[%emt 0:02:33]} 47. Qe4 {[%emt 0:00:50]} Rxf4 {[%emt 0:01:03]} 48. Qxf4 {[%emt 0:00:07]} Qxe6 {[%emt 0:00:43]} 49. Qxf3 {[%emt 0:00:02]} d5 {[%emt 0:00:12]} 50. Qf4 {[%emt 0:01:19]} Kg8 {[%emt 0:01:13]} 51. b4 {[%emt 0:00:34]} Qd7 {[%emt 0:00:06]} 52. Qd4 {[%emt 0:00:29]} Qd6 {[%emt 0:00:32]} 53. f4 {[%emt 0:00:19]} Qc6 {[%emt 0:00:28]} 54. Qc5 {[%emt 0:00:39]} Qd7 {[%emt 0:00:32]} 55. Qd4 {[%emt 0:00:15]} Qc6 {[%emt 0:00:02]} 56. Qd3 {[%emt 0:00:10]} Kf7 {[%emt 0:01:08]} 57. Kf2 {[%emt 0:00:25]} e6 {[%emt 0:00:27]} 58. Qd2 {[%emt 0:01:15]} Qa4 {[%emt 0:01:02]} 59. Qd3 {[%emt 0:00:29]} Qc6 {[%emt 0:00:09]} 60. b5 {[%emt 0:00:27]} Qc5+ {[%emt 0:00:17]} 61. Kg2 {[%emt 0:00:29]} d4 {[%emt 0:00:10]} 62. Kf2 {[%emt 0:00:26]} Kf6 {[%emt 0:00:25]} 63. Ke2 {[%emt 0:00:35]} Qd5 {[%emt 0:00:15]} 64. Kf2 {[%emt 0:00:31]} Kf7 {[%emt 0:01:30]} 65. b6 {[%emt 0:00:29]} Qa2+ {[%emt 0:00:13]} 66. Kf3 {[%emt 0:00:29]} Qd5+ {[%emt 0:00:03]} 67. Ke2 {[%emt 0:00:34]} Qa2+ {[%emt 0:00:38]} 68. Kd1 {[%emt 0:00:28]} Qa1+ {[%emt 0:00:15]} 69. Kc2 {[%emt 0:00:33]} Qa2+ {[%emt 0:00:22]} 70. Kd1 {[%emt 0:00:23]} Qa1+ {[%emt 0:00:07]} 71. Kc2 {[%emt 0:00:33]} Qa2+ {[%emt 0:00:12]} 72. Kd1 {[%emt 0:00:33]} Qa1+ {[%emt 0:00:20]} 73. Kc2 {[%emt 0:00:24]} 1/2-1/2